fUSD/lending_fUSD_20260420
["ID","MTS","AMOUNT","RATE_DAILY","PERIOD"]
[420874321,1776690638912,-500.0,8.773e-05,2]
[420874322,1776690638922,-500.0,8.773e-05,2]
[420874323,1776690638931,-500.0,8.773e-05,2]
[420874324,1776690638941,-500.0,8.773e-05,2]
[420874325,1776690638950,-500.0,8.773e-05,2]
[420874326,1776690638960,-500.0,8.773e-05,2]
[420874327,1776690638969,-593.54833749,8.773e-05,2]
[420874328,1776690638979,-500.32969981,8.773e-05,2]
[420874330,1776690638989,-167.90417718,8.773e-05,2]
[420874332,1776690638998,-500.0,8.773e-05,2]
[420874334,1776690639008,-500.3674813,8.798e-05,2]
[420874336,1776690639018,-160.32126042,8.798e-05,2]
[420874339,1776690639030,-34529.44138008,8.798e-05,2]
[420874341,1776690639040,-14464.04294959,8.798e-05,2]
[420874343,1776690639051,-1826.1386616,8.798e-05,2]
[420874354,1776690639145,-1000.0,8.798e-05,2]
[420874381,1776690640423,-217924.04083161,8.798e-05,2]
[420874382,1776690640433,-9234.4557425,8.798e-05,2]
[420874383,1776690640443,-3773.882922,8.798e-05,2]
[420874384,1776690640452,-15210.7552092,8.798e-05,2]
[420874385,1776690640462,-15210.7552093,8.798e-05,2]
[420874386,1776690640471,-28359.3237722,8.798e-05,2]
[420874387,1776690640480,-1532.0,8.798e-05,2]
[420874388,1776690640490,-156.0,8.798e-05,2]
[420874389,1776690640500,-1532.0,8.798e-05,2]
[420874390,1776690640510,-156.0,8.798e-05,2]
[420874391,1776690640520,-1532.0,8.798e-05,2]
[420874392,1776690640530,-152.0,8.798e-05,2]
[420874393,1776690640539,-1532.0,8.798e-05,2]
[420874394,1776690640548,-152.0,8.798e-05,2]
[420874395,1776690640558,-156.0,8.798e-05,2]
[420874396,1776690640568,-167.0,8.798e-05,2]
[420874397,1776690640577,-1532.0,8.798e-05,2]
[420874398,1776690640586,-169.87217527,8.798e-05,2]
[420874399,1776690640596,-152.0,8.798e-05,2]
[420874400,1776690640606,-167.0,8.798e-05,2]
[420874401,1776690640615,-1532.0,8.798e-05,2]
[420874402,1776690640624,-168.27804839,8.798e-05,2]
[420874403,1776690640633,-152.0,8.798e-05,2]
[420874404,1776690640649,-1532.0,8.798e-05,2]
[420874405,1776690640658,-152.0,8.798e-05,2]
[420874406,1776690640669,-1532.0,8.798e-05,2]
[420874407,1776690640679,-152.0,8.798e-05,2]
[420874408,1776690640688,-1532.0,8.798e-05,2]
[420874409,1776690640698,-1532.0,8.798e-05,2]
[420874410,1776690640708,-152.0,8.798e-05,2]
[420874411,1776690640718,-1532.0,8.798e-05,2]
[420874412,1776690640727,-152.0,8.798e-05,2]
[420874413,1776690640737,-1532.0,8.798e-05,2]
[420874414,1776690640747,-152.0,8.798e-05,2]
[420874415,1776690640756,-1532.0,8.798e-05,2]
[420874416,1776690640766,-1532.0,8.798e-05,2]
[420874417,1776690640775,-152.0,8.798e-05,2]
[420874418,1776690640785,-152.0,8.798e-05,2]
[420874419,1776690640794,-1532.0,8.798e-05,2]
[420874420,1776690640804,-152.0,8.798e-05,2]
[420874421,1776690640813,-1532.0,8.798e-05,2]
[420874422,1776690640823,-1532.0,8.798e-05,2]
[420874423,1776690640832,-152.0,8.798e-05,2]
[420874424,1776690640842,-1486.17867778,8.798e-05,2]
[420874425,1776690640852,-152.0,8.798e-05,2]
[420874426,1776690640861,-1532.0,8.798e-05,2]
[420874427,1776690640871,-152.0,8.798e-05,2]
[420874428,1776690640880,-1532.0,8.798e-05,2]
[420874429,1776690640890,-152.0,8.798e-05,2]
[420874430,1776690640900,-1532.0,8.798e-05,2]
[420874431,1776690640909,-233.63938067,8.798e-05,2]
[420874432,1776690640919,-1532.0,8.798e-05,2]
[420874433,1776690640928,-1532.0,8.798e-05,2]
[420874434,1776690640938,-1532.0,8.798e-05,2]
[420874435,1776690640947,-1532.0,8.798e-05,2]
[420874437,1776690640957,-1532.0,8.798e-05,2]
[420874439,1776690640966,-1532.0,8.798e-05,2]
[420874441,1776690640976,-1532.0,8.798e-05,2]
[420874442,1776690640986,-1532.0,8.798e-05,2]
[420874443,1776690640995,-1532.0,8.798e-05,2]
[420874444,1776690641005,-1532.0,8.798e-05,2]
[420874445,1776690641015,-1532.0,8.798e-05,2]
[420874446,1776690641024,-1532.0,8.798e-05,2]
[420874447,1776690641034,-1532.0,8.798e-05,2]
[420874448,1776690641043,-151.0,8.798e-05,2]
[420874449,1776690641052,-151.0,8.798e-05,2]
[420874450,1776690641062,-151.0,8.798e-05,2]
[420874451,1776690641071,-151.0,8.798e-05,2]
[420874452,1776690641081,-151.0,8.798e-05,2]
[420874453,1776690641090,-151.0,8.798e-05,2]
[420874454,1776690641100,-151.0,8.798e-05,2]
[420874455,1776690641110,-151.0,8.798e-05,2]
[420874456,1776690641119,-151.0,8.798e-05,2]
[420874457,1776690641129,-151.0,8.798e-05,2]
[420874458,1776690641138,-151.0,8.798e-05,2]
[420874459,1776690641148,-193.30678905,8.798e-05,2]
[420874460,1776690641157,-1532.0,8.798e-05,2]
[420874461,1776690641167,-1532.0,8.798e-05,2]
[420874462,1776690641177,-1532.0,8.798e-05,2]
[420874463,1776690641187,-1532.0,8.798e-05,2]
[420874464,1776690641196,-1532.0,8.798e-05,2]
[420874465,1776690641205,-1532.0,8.798e-05,2]
[420874466,1776690641214,-1532.0,8.798e-05,2]
[420874467,1776690641224,-1532.0,8.798e-05,2]
[420874468,1776690641234,-1532.0,8.798e-05,2]
[420874469,1776690641243,-1532.0,8.798e-05,2]
[420874470,1776690641253,-1532.0,8.798e-05,2]
[420874471,1776690641263,-1532.0,8.798e-05,2]
[420874472,1776690641272,-1532.0,8.798e-05,2]
[420874473,1776690641281,-1532.0,8.798e-05,2]
[420874474,1776690641291,-1532.0,8.798e-05,2]
[420874475,1776690641300,-1532.0,8.798e-05,2]
[420874476,1776690641310,-1532.0,8.798e-05,2]
[420874477,1776690641319,-1532.0,8.798e-05,2]
[420874478,1776690641329,-151.0,8.825e-05,5]
[420874479,1776690641339,-150.99,8.825e-05,2]
[420874480,1776690641348,-2120.02,8.825e-05,2]
[420874481,1776690641358,-765.99,8.825e-05,2]
[420874482,1776690641368,-299.99,8.825e-05,2]
[420874483,1776690641378,-9999.99,8.825e-05,2]
[420874484,1776690641388,-22742.77,8.825e-05,2]
[420874485,1776690641397,-999.99,8.825e-05,2]
[420874486,1776690641407,-151.0,8.896e-05,2]
[420874487,1776690641417,-151.0,8.896e-05,2]
[420874488,1776690641426,-151.0,8.896e-05,2]
[420874489,1776690641436,-151.0,8.896e-05,2]
[420874490,1776690641445,-256.804261,8.898e-05,2]
[420874491,1776690641455,-240.64,8.904e-05,3]
[420874492,1776690641465,-194.91,8.94e-05,2]
[420874493,1776690641474,-2653.95189037,8.999e-05,2]
[420874494,1776690641484,-27581.84399816,9e-05,3]
[420874495,1776690641511,-1008.65523016,9e-05,3]
[420874524,1776690643518,-1532.0,8.798e-05,2]
[420874525,1776690643527,-776.491924,9e-05,3]
[420874529,1776690646679,-2615.5937416,8.497e-05,2]
[420874551,1776691439685,151.0,8.466e-05,2]
[420874552,1776691464331,189.77878572,8.453e-05,2]
[420874554,1776691581595,194.62,8.37e-05,2]
[420874555,1776691594178,1500.0,0.000165,30]
[420874556,1776691629272,213.0,8.327e-05,2]
[420874557,1776691660272,228.68,0.000165,30]
[420874558,1776691663137,160.0,0.000165,30]
[420874559,1776691673499,9787.01,8.397e-05,2]
[420874560,1776691673526,10000.01,8.397e-05,2]
[420874561,1776691673554,10000.01,8.397e-05,2]
[420874562,1776691673582,10000.01,8.397e-05,2]
[420874563,1776691673609,10000.01,8.397e-05,2]
[420874564,1776691673635,10000.01,8.397e-05,2]
[420874565,1776691673663,10000.01,8.397e-05,2]
[420874566,1776691673692,10000.01,8.397e-05,2]
[420874567,1776691673719,10000.01,8.397e-05,2]
[420874568,1776691673745,10000.01,8.397e-05,2]
[420874569,1776691686181,-300.0,8.396e-05,2]
[420874570,1776691699059,-6317.6281142,8.397e-05,2]
[420874571,1776691699073,-10000.01,8.397e-05,2]
[420874572,1776691701478,-10000.01,8.397e-05,2]
[420874573,1776691704477,-10000.01,8.397e-05,2]
[420874574,1776691758463,581.0,0.000165,30]
[420874580,1776691832715,-300.0,8.395e-05,2]
[420874581,1776691832725,-1200.0,8.395e-05,2]
[420874582,1776691832735,-300.0,8.395e-05,2]
[420874583,1776691832744,-300.0,8.395e-05,2]
[420874584,1776691832754,-500.0,8.396e-05,2]
[420874585,1776691832764,-368.52360598,8.396e-05,2]
[420874586,1776691832774,-285.48891295,8.396e-05,2]
[420874587,1776691832784,-500.0,8.396e-05,2]
[420874588,1776691832793,-500.0,8.396e-05,2]
[420874589,1776691832803,-500.0,8.396e-05,2]
[420874590,1776691832812,-500.0,8.396e-05,2]
[420874591,1776691832821,-633.71926136,8.396e-05,2]
[420874592,1776691832831,-500.0,8.396e-05,2]
[420874593,1776691832840,-500.0,8.396e-05,2]
[420874594,1776691832850,-500.0,8.396e-05,2]
[420874595,1776691832859,-500.0,8.396e-05,2]
[420874596,1776691832869,-500.0,8.396e-05,2]
[420874597,1776691832878,-500.0,8.396e-05,2]
[420874598,1776691832891,-478.1758472,8.396e-05,2]
[420874599,1776691832900,-500.0,8.396e-05,2]
[420874601,1776691832911,-500.0,8.396e-05,2]
[420874602,1776691832920,-500.0,8.396e-05,2]
[420874603,1776691832929,-500.0,8.396e-05,2]
[420874604,1776691832939,-500.0,8.396e-05,2]
[420874605,1776691832947,-500.0,8.396e-05,2]
[420874606,1776691832956,-500.0,8.396e-05,2]
[420874607,1776691832966,-217.69530802,8.396e-05,2]
[420874608,1776691832975,-338.30261265,8.396e-05,2]
[420874609,1776691832985,-150.0,8.396e-05,2]
[420874610,1776691832994,-150.0,8.396e-05,2]
[420874611,1776691833004,-150.0,8.396e-05,2]
[420874612,1776691833014,-150.0,8.396e-05,2]
[420874613,1776691833024,-5000.0,8.396e-05,2]
[420874614,1776691833034,-320371.9806858,8.397e-05,2]
[420874615,1776691833043,-2192.57235329,8.436e-05,2]
[420874616,1776691833053,-151.0,8.437e-05,2]
[420874617,1776691833062,-151.0,8.437e-05,2]
[420874618,1776691833071,-871.01112257,8.496e-05,2]
[420874619,1776691833081,-871.01112257,8.497e-05,2]
[420874620,1776691833090,-871.01112257,8.497e-05,2]
[420874621,1776691833100,-2039.88,8.581e-05,2]
[420874622,1776691833111,-464.29,8.581e-05,2]
[420874623,1776691833120,-1500.0,8.581e-05,2]
[420874624,1776691833130,-285.94,8.603e-05,2]
[420874625,1776691833139,-150.0,8.624e-05,2]
[420874626,1776691833149,-500.0,8.624e-05,2]
[420874627,1776691833158,-354.68351937,8.624e-05,2]
[420874628,1776691833168,-168.17565768,8.624e-05,2]
[420874629,1776691833176,-150.0,8.624e-05,2]
[420874630,1776691833186,-173.27403466,8.624e-05,2]
[420874631,1776691833195,-150.0,8.624e-05,2]
[420874632,1776691833206,-155.98173,8.624e-05,2]
[420874633,1776691833215,-998.0,8.624e-05,2]
[420874634,1776691833224,-998.0,8.624e-05,2]
[420874635,1776691833233,-998.0,8.624e-05,2]
[420874636,1776691833241,-998.0,8.624e-05,2]
[420874637,1776691833252,-998.0,8.624e-05,2]
[420874638,1776691833261,-998.0,8.624e-05,2]
[420874639,1776691833271,-998.0,8.624e-05,2]
[420874640,1776691833280,-998.0,8.624e-05,2]
[420874641,1776691833290,-998.0,8.624e-05,2]
[420874642,1776691833300,-998.0,8.624e-05,2]
[420874643,1776691833310,-998.0,8.624e-05,2]
[420874644,1776691833321,-998.0,8.624e-05,2]
[420874645,1776691833331,-998.0,8.624e-05,2]
[420874646,1776691833341,-998.0,8.624e-05,2]
[420874647,1776691833352,-998.0,8.624e-05,2]
[420874648,1776691833362,-998.0,8.624e-05,2]
[420874649,1776691833372,-998.0,8.624e-05,2]
[420874650,1776691833382,-998.0,8.624e-05,2]
[420874651,1776691833392,-998.0,8.624e-05,2]
[420874652,1776691833402,-998.0,8.624e-05,2]
[420874653,1776691833412,-998.0,8.624e-05,2]
[420874654,1776691833421,-998.0,8.624e-05,2]
[420874655,1776691833431,-998.0,8.624e-05,2]
[420874656,1776691833440,-1016.40778139,8.624e-05,2]
[420874657,1776691833450,-500.0,8.624e-05,2]
[420874658,1776691833460,-9274.19,8.646e-05,2]
[420874659,1776691833470,-3393.0,8.702e-05,2]
[420874660,1776691833480,-5453.4388,8.764e-05,2]
[420874661,1776691833489,-2500.0,8.764e-05,2]
[420874662,1776691833500,-150.0,8.766e-05,2]
[420874663,1776691833510,-150.0,8.766e-05,2]
[420874664,1776691833520,-150.0,8.766e-05,2]
[420874665,1776691833529,-150.0,8.766e-05,2]
[420874666,1776691833538,-257.45312712,8.766e-05,2]
[420874667,1776691833547,-168.0,8.814e-05,2]
[420874668,1776691833555,-437.0,8.814e-05,2]
[420874669,1776691833564,-151.0,8.861e-05,2]
[420874670,1776691833574,-375.2756109,8.864e-05,2]
[420874671,1776691833584,-9881.3458687,8.864e-05,2]
[420874672,1776691833593,-215172.9748754,8.864e-05,2]
[420874673,1776691833603,-11408.0664069,8.864e-05,2]
[420874674,1776691833612,-32677.5592361,8.864e-05,2]
[420874675,1776691833622,-4156.846,8.876e-05,2]
[420874676,1776691833631,-14343.0593,8.876e-05,2]
[420874677,1776691833641,-250.0,8.888e-05,2]
[420874678,1776691833650,-250.0,8.888e-05,2]
[420874679,1776691833660,-263.64,8.888e-05,2]
[420874680,1776691833670,-31754.10619515,8.9e-05,2]
[420874681,1776691833683,-1324.80380485,8.9e-05,2]
[420874682,1776691833692,-299.99,8.92e-05,2]
[420874683,1776691833702,-150.99,8.92e-05,2]
[420874684,1776691833712,-9999.99,8.92e-05,2]
[420874685,1776691833721,-5992.21,8.92e-05,2]
[420874686,1776691833731,-310.0,8.957e-05,2]
[420874687,1776691833741,-200.0,8.96e-05,2]
[420874688,1776691833752,-500.0,8.96e-05,2]
[420874689,1776691833762,-1328.27659266,8.96e-05,2]
[420874690,1776691833771,-194.72792766,8.96e-05,2]
[420874691,1776691833781,-670.58624095,8.96e-05,2]
[420874692,1776691833790,-8882.6885148,8.96e-05,2]
[420874693,1776691833800,-743.50770149,8.96e-05,2]
[420874694,1776691833809,-151.0,8.96e-05,2]
[420874695,1776691833819,-187.60590029,8.96e-05,2]
[420874696,1776691833831,-7.12202737,8.96e-05,2]
[420874697,1776691833840,-2000.0,8.96e-05,2]
[420874698,1776691833850,-2000.0,8.96e-05,2]
[420874699,1776691833859,-2000.0,8.96e-05,2]
[420874700,1776691833869,-2000.0,8.96e-05,2]
[420874701,1776691833879,-2000.0,8.96e-05,2]
[420874702,1776691833889,-2000.0,8.96e-05,2]
[420874703,1776691833899,-2000.0,8.96e-05,2]
[420874704,1776691833908,-2000.0,8.96e-05,2]
[420874705,1776691833918,-2000.0,8.96e-05,2]
[420874706,1776691833927,-2000.0,8.96e-05,2]
[420874707,1776691833936,-2000.0,8.96e-05,2]
[420874708,1776691833946,-2000.0,8.96e-05,2]
[420874709,1776691833955,-2000.0,8.96e-05,2]
[420874710,1776691833965,-578.20924308,8.96e-05,2]
[420874711,1776691833974,-174.61919141,8.96e-05,2]
[420874712,1776691833984,-219.23011724,8.96e-05,2]
[420874713,1776691833994,-152.0,8.96e-05,2]
[420874714,1776691834004,-227.34163157,8.96e-05,2]
[420874715,1776691834014,-225.60716926,8.96e-05,2]
[420874716,1776691834023,-235.75327194,8.96e-05,2]
[420874717,1776691834033,-244.476143,8.96e-05,2]
[420874718,1776691834043,-253.52176029,8.96e-05,2]
[420874719,1776691834052,-262.90206542,8.96e-05,2]
[420874720,1776691834062,-272.62944185,8.96e-05,2]
[420874721,1776691834071,-151.0,8.96e-05,2]
[420874722,1776691834080,-282.71673119,8.96e-05,2]
[420874723,1776691834091,-293.17725025,8.96e-05,2]
[420874724,1776691834100,-304.02480851,8.96e-05,2]
[420874725,1776691834110,-315.27372642,8.96e-05,2]
[420874726,1776691834120,-326.9388543,8.96e-05,2]
[420874727,1776691834130,-339.03559191,8.96e-05,2]
[420874728,1776691834139,-194.72792766,8.96e-05,2]
[420874729,1776691834148,-279.9045709,8.96e-05,2]
[420874730,1776691834157,-151.66861197,8.976e-05,2]
[420874731,1776691834166,-151.05521271,8.976e-05,2]
[420874732,1776691834175,-250.0,8.976e-05,2]
[420874733,1776691834185,-21381.76344556,9e-05,3]
[420874738,1776691838548,-164.76,8.838e-05,2]
[420874739,1776691838558,-75583.98591576,9e-05,3]
[420874740,1776691838569,-48993.48432967,9e-05,3]
[420874741,1776691838581,-1826.1386616,9e-05,3]
[420874742,1776691838607,-480.38700478,9e-05,3]
[420874743,1776691838619,-263.36630388,9e-05,3]
[420874744,1776691838662,-6096.0,9e-05,3]
[420874764,1776691843741,-344.66,9e-05,3]
[420874765,1776691843851,-2091.19547051,9e-05,3]
[420874766,1776691846414,-16836.6974,9e-05,3]
[420874767,1776691846470,-8600.16096363,9e-05,3]
[420874768,1776691846583,-113285.10784294,9e-05,3]
[420874801,1776691934526,209.24,8.228e-05,2]
[420874802,1776691981350,300.0,8.296e-05,2]
[420874803,1776691982677,150.0,8.296e-05,2]
[420874804,1776691984657,300.0,8.296e-05,2]
[420874805,1776691988372,179.0,8.228e-05,3]
[420874806,1776692001910,500.0,8.296e-05,2]
[420874807,1776692001954,500.0,8.296e-05,2]
[420874808,1776692001990,500.0,8.296e-05,2]
[420874809,1776692002028,500.0,8.296e-05,2]
[420874810,1776692002073,500.0,8.296e-05,2]
[420874811,1776692002115,165.61525366,8.296e-05,2]
[420874812,1776692002157,500.0,8.296e-05,2]
[420874813,1776692002194,500.0,8.296e-05,2]
[420874814,1776692002318,500.0,8.296e-05,2]
[420874815,1776692002359,500.0,8.296e-05,2]
[420874816,1776692002400,500.0,8.296e-05,2]
[420874817,1776692002453,500.0,8.296e-05,2]
[420874818,1776692002493,500.0,8.296e-05,2]
[420874819,1776692002532,500.0,8.296e-05,2]
[420874820,1776692002593,500.0,8.296e-05,2]
[420874821,1776692002637,500.0,8.296e-05,2]
[420874822,1776692002678,500.0,8.296e-05,2]
[420874823,1776692002716,500.0,8.296e-05,2]
[420874824,1776692002765,196.15474634,8.296e-05,2]
[420874825,1776692002794,303.84525366,8.296e-05,2]
[420874826,1776692002854,500.0,8.296e-05,2]
[420874827,1776692002989,500.0,8.296e-05,2]
[420874828,1776692003031,500.0,8.296e-05,2]
[420874829,1776692003074,500.0,8.296e-05,2]
[420874830,1776692011524,500.0,8.296e-05,2]
[420874831,1776692047354,205.0,8.296e-05,3]
[420874832,1776692055119,500.0,8.296e-05,2]
[420874833,1776692060062,500.0,8.296e-05,2]
[420874834,1776692062143,500.0,8.296e-05,2]
[420874835,1776692062200,405.63972753,8.296e-05,2]
[420874836,1776692062283,500.0,8.296e-05,2]
[420874837,1776692066608,500.0,8.296e-05,2]
[420874838,1776692066641,500.0,8.296e-05,2]
[420874839,1776692071418,316.96226414,8.296e-05,2]
[420874840,1776692101196,1200.0,8.296e-05,2]
[420874841,1776692101232,199.0,8.296e-05,2]
[420874842,1776692107921,202.0,8.296e-05,3]
[420874843,1776692109101,172.59,6.865e-05,2]
[420874844,1776692117775,150.0,0.000164,120]
[420874846,1776692162187,300.0,8.296e-05,2]
[420874847,1776692162481,150.0,8.296e-05,2]
[420874848,1776692167163,231.0,8.296e-05,3]
[420874849,1776692213589,600.81937274,8.296e-05,2]
[420874850,1776692231399,213.15338193,8.296e-05,2]
[420874851,1776692231435,286.84661807,8.296e-05,2]
[420874852,1776692251218,238.13792658,8.296e-05,2]
[420874853,1776692285711,227.0,8.296e-05,3]
[420874854,1776692305051,150.0,0.000164,120]
[420874855,1776692342098,300.0,8.296e-05,2]
[420874856,1776692343534,150.0,8.296e-05,2]
[420874857,1776692401419,1200.0,8.296e-05,2]
[420874858,1776692408941,155.0,8.296e-05,3]
[420874859,1776692409714,216.0,8.296e-05,3]
[420874860,1776692413745,153.0,8.296e-05,3]
[420874862,1776692466179,205.0,8.296e-05,3]
[420874863,1776692492648,150.0,0.000164,120]
[420874864,1776692495675,1692.456,8.197e-05,2]
[420874865,1776692503722,5176.56945535,8.197e-05,2]
[420874866,1776692503746,10000.01,8.197e-05,2]
[420874867,1776692503769,10000.01,8.197e-05,2]
[420874868,1776692503791,10000.01,8.197e-05,2]
[420874869,1776692503814,10000.01,8.197e-05,2]
[420874870,1776692503837,10000.01,8.197e-05,2]
[420874871,1776692503860,10000.01,8.197e-05,2]
[420874872,1776692503883,10000.01,8.197e-05,2]
[420874873,1776692503906,7121.92424465,8.197e-05,2]
[420874874,1776692522475,197.0,8.296e-05,2]
[420874875,1776692522941,150.0,8.296e-05,2]
[420874876,1776692566471,150.0,8.048e-05,2]
[420874877,1776692587745,195.0,8.048e-05,3]
[420874878,1776692666754,185.0,8.048e-05,3]
[420874879,1776692673132,157.0,8.048e-05,3]
[420874880,1776692679975,150.0,0.000164,120]
[420874881,1776692724286,150.0,8.038e-05,2]
[420874882,1776692724336,150.0,8.081e-05,2]
[420874883,1776692724406,150.0,8.123e-05,2]
[420874884,1776692724463,150.0,8.166e-05,2]
[420874885,1776692724548,150.0,8.208e-05,2]
[420874886,1776692724611,150.0,8.251e-05,2]
[420874887,1776692724676,150.0,8.294e-05,2]
[420874888,1776692744857,150.13251298,8.038e-05,2]
[420874889,1776692744909,150.0,8.038e-05,2]
[420874890,1776692745027,150.0,8.138e-05,2]
[420874891,1776692745092,150.0,8.237e-05,2]
[420874892,1776692745564,150.0,8.038e-05,2]
[420874893,1776692745615,43.95324237,8.094e-05,2]
[420874894,1776692745651,106.04675763,8.094e-05,2]
[420874895,1776692745710,150.0,8.15e-05,2]
[420874896,1776692745775,150.0,8.206e-05,2]
[420874897,1776692745848,150.0,8.262e-05,2]
[420874898,1776692753490,150.0,8.038e-05,2]
[420874899,1776692753570,150.0,8.038e-05,2]
[420874900,1776692753632,150.0,8.038e-05,2]
[420874901,1776692753663,150.0,8.128e-05,2]
[420874902,1776692753698,150.0,8.217e-05,2]
[420874903,1776692754073,260.0,8.296e-05,2]
[420874904,1776692756742,150.0,8.038e-05,2]
[420874905,1776692762989,150.0,8.038e-05,2]
[420874906,1776692763066,150.0,8.166e-05,2]
[420874907,1776692763135,150.0,8.294e-05,2]
[420874908,1776692768307,150.0,8.038e-05,2]
[420874909,1776692768388,150.0,8.038e-05,2]
[420874910,1776692768495,150.0,8.038e-05,2]
[420874911,1776692768535,150.0,8.217e-05,2]
[420874912,1776692768780,150.0,8.038e-05,2]
[420874913,1776692768890,150.0,8.038e-05,2]
[420874914,1776692884263,150.0,8.296e-05,2]
[420874917,1776692898517,500.0,8.296e-05,2]
[420874918,1776692898559,500.0,8.296e-05,2]
[420874919,1776692898602,500.0,8.296e-05,2]
[420874920,1776692898655,500.0,8.296e-05,2]
[420874921,1776692898699,500.0,8.296e-05,2]
[420874922,1776692898737,500.0,8.296e-05,2]
[420874923,1776692898794,500.0,8.296e-05,2]
[420874924,1776692898860,638.33105617,8.296e-05,2]
[420874925,1776693001527,1200.0,8.296e-05,2]
[420874926,1776693012022,1445.6321862,8.197e-05,2]
[420874927,1776693012048,10000.01,8.197e-05,2]
[420874928,1776693012073,10000.01,8.197e-05,2]
[420874929,1776693012098,10000.01,8.197e-05,2]
[420874930,1776693012123,10000.01,8.197e-05,2]
[420874931,1776693012148,10000.01,8.197e-05,2]
[420874932,1776693012174,10000.01,8.197e-05,2]
[420874933,1776693012198,10000.01,8.197e-05,2]
[420874934,1776693012222,10000.01,8.197e-05,2]
[420874935,1776693012248,10000.01,8.197e-05,2]
[420875088,1776693033255,-419.24675116,8.197e-05,2]
[420875093,1776693033289,-302.1397762,8.197e-05,2]
[420875095,1776693033300,-144029.45068644,8.197e-05,2]
[420875097,1776693033309,-250.0,8.297e-05,2]
[420875099,1776693033318,-5000.0,8.297e-05,2]
[420875101,1776693033327,-193.0,8.297e-05,2]
[420875103,1776693033336,-258.0,8.297e-05,2]
[420875105,1776693033345,-250.0,8.297e-05,2]
[420875107,1776693033354,-195.52411365,8.298e-05,2]
[420875109,1776693033364,-150.0,8.306e-05,2]
[420875111,1776693033375,-150.0,8.317e-05,2]
[420875112,1776693033384,-150.0,8.336e-05,2]
[420875114,1776693033393,-150.0,8.336e-05,2]
[420875116,1776693033402,-150.0,8.336e-05,2]
[420875118,1776693033411,-150.0,8.336e-05,2]
[420875119,1776693033420,-150.0,8.373e-05,2]
[420875120,1776693033429,-150.0,8.379e-05,2]
[420875121,1776693033439,-150.0,8.396e-05,2]
[420875122,1776693033448,-150.0,8.396e-05,2]
[420875123,1776693033457,-150.0,8.421e-05,2]
[420875124,1776693033467,-9999.99,8.421e-05,2]
[420875126,1776693033477,-150.0,8.421e-05,2]
[420875128,1776693033486,-150.0,8.429e-05,2]
[420875130,1776693033496,-150.0,8.435e-05,2]
[420875132,1776693033505,-1207.2,8.453e-05,2]
[420875134,1776693033514,-150.0,8.464e-05,2]
[420875136,1776693033524,-578.20924308,8.47e-05,2]
[420875138,1776693033534,-194.72792766,8.47e-05,2]
[420875140,1776693033544,-500.0,8.47e-05,2]
[420875142,1776693033553,-200.0,8.47e-05,2]
[420875144,1776693033562,-1328.27659266,8.47e-05,2]
[420875146,1776693033572,-8882.6885148,8.47e-05,2]
[420875148,1776693033581,-743.50770149,8.47e-05,2]
[420875150,1776693033591,-151.0,8.47e-05,2]
[420875153,1776693033601,-670.58624095,8.47e-05,2]
[420875155,1776693033610,-2000.0,8.47e-05,2]
[420875157,1776693033619,-174.61919141,8.47e-05,2]
[420875159,1776693033628,-2000.0,8.47e-05,2]
[420875161,1776693033637,-2000.0,8.47e-05,2]
[420875163,1776693033646,-2000.0,8.47e-05,2]
[420875165,1776693033655,-624.63118668,8.47e-05,2]
[420875167,1776693033664,-194.72792766,8.47e-05,2]
[420875169,1776693033674,-279.9045709,8.47e-05,2]
[420875171,1776693033684,-151.0,8.47e-05,2]
[420875173,1776693033692,-201.53159052,8.47e-05,2]
[420875175,1776693033702,-219.23011724,8.47e-05,2]
[420875177,1776693033710,-227.34163157,8.47e-05,2]
[420875179,1776693033719,-235.75327194,8.47e-05,2]
[420875181,1776693033730,-244.476143,8.47e-05,2]
[420875183,1776693033738,-151.97062309,8.47e-05,2]